Workbook

Sheet Cup
B1: Liquid into a Conical Cup
B3: This DIGMath module lets you investigate
B4: the related rates calculus problem of finding
B5: the rate dy/dt at which the height y
B6: of liquid in a conical cup is increasing
B7: when the liquid is flowing into the cup
C8: at a given rate dV/dt.
A11: What is the height H of the cup (2 - 10 inches)?
D12: 5 | E12: =#REF!+D12*(#REF!-#REF!)/100 ->  | F12: =D12 -> 5
A14: What is the maximum radius R (1 - 6 inches) of the cup?
D15: 4 | E15: =#REF!+D15*(#REF!-#REF!)/100 ->  | F15: =D15 -> 4
A17: How fast (dV/dt) does liquid flow
B18: into the cup (1 to 10 cubic inches per sec)?
D19: 7 | E19: =#REF!+D19*(#REF!-#REF!)/100 ->  | F19: =D19 -> 7
A23: Click each item below for suggestions and investigations | L23: Select the height of liquid in the cup: y = | P23: =IF(O24/5>L,L,O24/5) -> 0.4 | Q23: inches | R23: Time = | S23: =LOOKUP(x0+0.01, Sheet2!D3:D103,Sheet2!C3:C103) -> 0.01 | T23: seconds
C24: Item 1 | O24: 2 | P24: =Sheet2!#REF!+O24*(Sheet2!#REF!-Sheet2!#REF!)/100 -> 
C25: Item 2
C26: Item 3 | N26: The radius of the liquid is | P26: =x0*Area/H -> 0.50 | Q26: inches
C27: Item 4
L28: The height of the liquid is increasing at a rate of | Q28: =LOOKUP(x0+0.01,Sheet2!D3:D103, Sheet2!E3:E103) -> 19.3 | R28: cubic inches per second
A30: Created by: Sheldon P. Gordon & Florence S. Gordon
A31: Farmingdale State College NYIT
A32: Development of this module was supported by the
A33: NSF's Division of Undergraduate Education
A34: under grants DUE-0310123 and DUE-0442160.
A36: To access/download all the DIGMath Apps for Calculus
A37: Click this link: | C37: DIGMath for Calculus

Sheet Sheet2
B1: radius | C1: t | D1: Height | E1: dy/dt
I2: Rmax = | J2: =RMax -> 4
A3: 0 | B3: 0.00 | C3: 0.00 | D3: 0.00 | E3: =(D4-D3)/(C4-C3) -> 4177.82 | I3: Hmax = | J3: =HMax -> 5
A4: 1 | B4: =D4*RMax/HMax -> 0.04 | C4: =time*B4^2*D4/RMax^2/HMax -> 0.000 | D4: =D3+dy -> 0.05 | E4: 596.83 | I4: rate = | J4: =rate -> 7
A5: 2 | B5: 0.08 | C5: 0.000 | D5: 0.10 | E5: 219.89
A6: 3 | B6: 0.12 | C6: 0.000 | D6: 0.15 | E6: 112.91
A7: 4 | B7: 0.16 | C7: 0.001 | D7: 0.20 | E7: 68.49
A8: 5 | B8: 0.20 | C8: 0.001 | D8: 0.25 | E8: 45.91
A9: 6 | B9: 0.24 | C9: 0.003 | D9: 0.30 | E9: 32.90
A10: 7 | B10: 0.28 | C10: 0.004 | D10: 0.35 | E10: 24.72
A11: 8 | B11: 0.32 | C11: 0.006 | D11: 0.40 | E11: 19.25
A12: 9 | B12: 0.36 | C12: 0.009 | D12: 0.45 | E12: 15.42 | L12: total time = | M12: =PI()*RMax^2*HMax/3/rate -> 11.96797201 | N12: secs
A13: 10 | B13: 0.40 | C13: 0.012 | D13: 0.50 | E13: 12.62 | L13: dt = | M13: =time/100 -> 0.1196797201
A14: 11 | B14: 0.44 | C14: 0.016 | D14: 0.55 | E14: 10.52 | H14: First Chart | L14: dx = | M14: =H/100 -> 0.04
A15: 12 | B15: 0.48 | C15: 0.021 | D15: 0.60 | E15: 8.91 | H15: Vertical Line | L15: dy = | M15: =HMax/100 -> 0.05
A16: 13 | B16: 0.52 | C16: 0.026 | D16: 0.65 | E16: 7.64 | I16: =H20 -> 0.4 | J16: 0
A17: 14 | B17: 0.56 | C17: 0.033 | D17: 0.70 | E17: 6.62 | I17: =H20 -> 0.4 | J17: =J5 -> 0.00
A18: 15 | B18: 0.60 | C18: 0.040 | D18: 0.75 | E18: 5.79
A19: 16 | B19: 0.64 | C19: 0.049 | D19: 0.80 | E19: 5.11 | H19: Point
A20: 17 | B20: 0.68 | C20: 0.059 | D20: 0.85 | E20: 4.55 | H20: =x0 -> 0.4 | I20: 0
A21: 18 | B21: 0.72 | C21: 0.070 | D21: 0.90 | E21: 4.07
A22: 19 | B22: 0.76 | C22: 0.082 | D22: 0.95 | E22: 3.66 | H22: Second Chart
A23: 20 | B23: 0.80 | C23: 0.096 | D23: 1.00 | E23: 3.31 | H23: Vertical Line
A24: 21 | B24: 0.84 | C24: 0.111 | D24: 1.05 | E24: 3.01 | I24: =H38 -> 0.4 | J24: 0
A25: 22 | B25: 0.88 | C25: 0.127 | D25: 1.10 | E25: 2.75 | I25: =H38 -> 0.4 | J25: =LOOKUP(x0+0.01,B3:B203,D3:D203) -> 0.5
A26: 23 | B26: 0.92 | C26: 0.146 | D26: 1.15 | E26: 2.52
A27: 24 | B27: 0.96 | C27: 0.165 | D27: 1.20 | E27: 2.32 | H27: Third Chart
A28: 25 | B28: 1.00 | C28: 0.187 | D28: 1.25 | E28: 2.14 | H28: Vertical Line
A29: 26 | B29: 1.04 | C29: 0.210 | D29: 1.30 | E29: 1.98 | I29: =LOOKUP(x0,B3:B203,C3:C203) -> 0.01196797201 | J29: 0
A30: 27 | B30: 1.08 | C30: 0.236 | D30: 1.35 | E30: 1.84 | I30: =I29 -> 0.01196797201 | J30: =LOOKUP(x0+0.1,B3:B203,D3:D203) -> 0.6
A31: 28 | B31: 1.12 | C31: 0.263 | D31: 1.40 | E31: 1.71
A32: 29 | B32: 1.16 | C32: 0.292 | D32: 1.45 | E32: 1.60 | H32: Fourth Chart
A33: 30 | B33: 1.20 | C33: 0.323 | D33: 1.50 | E33: 1.50 | H33: Vertical Line
A34: 31 | B34: 1.24 | C34: 0.357 | D34: 1.55 | E34: 1.40 | I34: =LOOKUP(x0,B3:B203,C3:C203) -> 0.01196797201 | J34: 0
A35: 32 | B35: 1.28 | C35: 0.392 | D35: 1.60 | E35: =(D36-D35)/(C36-C35) -> 1.32 | I35: =I34 -> 0.01196797201 | J35: =LOOKUP(x0,B3:B203,E3:E203) -> 12.6218044
A36: 33 | B36: =D36*RMax/HMax -> 1.32 | C36: =time*B36^2*D36/RMax^2/HMax -> 0.430 | D36: =D35+dy -> 1.65 | E36: 1.24
A37: 34 | B37: 1.36 | C37: 0.470 | D37: 1.70 | E37: 1.17 | H37: Point
A38: 35 | B38: 1.40 | C38: 0.513 | D38: 1.75 | E38: 1.10 | H38: =x0 -> 0.4 | I38: 0
A39: 36 | B39: 1.44 | C39: 0.558 | D39: 1.80 | E39: 1.05
A40: 37 | B40: 1.48 | C40: 0.606 | D40: 1.85 | E40: 0.99 | H40: Point on curve
A41: 38 | B41: 1.52 | C41: 0.657 | D41: 1.90 | E41: 0.94 | H41: x= | I41: =H20*I14 -> 0
A42: 39 | B42: 1.56 | C42: 0.710 | D42: 1.95 | E42: 0.89 | H42: =x0 -> 0.4 | I42: =LOOKUP(x0,B3:B84,C3:C84) -> 0.01196797201
A43: 40 | B43: 1.60 | C43: 0.766 | D43: 2.00 | E43: 0.85
A44: 41 | B44: 1.64 | C44: 0.825 | D44: 2.05 | E44: 0.81
A45: 42 | B45: 1.68 | C45: 0.887 | D45: 2.10 | E45: 0.77
A46: 43 | B46: 1.72 | C46: 0.952 | D46: 2.15 | E46: 0.74
A47: 44 | B47: 1.76 | C47: 1.019 | D47: 2.20 | E47: 0.70
A48: 45 | B48: 1.80 | C48: 1.091 | D48: 2.25 | E48: 0.67
A49: 46 | B49: 1.84 | C49: 1.165 | D49: 2.30 | E49: 0.64
A50: 47 | B50: 1.88 | C50: 1.243 | D50: 2.35 | E50: 0.62
A51: 48 | B51: 1.92 | C51: 1.324 | D51: 2.40 | E51: 0.59
A52: 49 | B52: 1.96 | C52: 1.408 | D52: 2.45 | E52: 0.57
A53: 50 | B53: 2.00 | C53: 1.496 | D53: 2.50 | E53: 0.55
A54: 51 | B54: 2.04 | C54: 1.588 | D54: 2.55 | E54: 0.53
A55: 52 | B55: 2.08 | C55: 1.683 | D55: 2.60 | E55: 0.51
A56: 53 | B56: 2.12 | C56: 1.782 | D56: 2.65 | E56: 0.49
A57: 54 | B57: 2.16 | C57: 1.885 | D57: 2.70 | E57: 0.47
A58: 55 | B58: 2.20 | C58: 1.991 | D58: 2.75 | E58: 0.45
A59: 56 | B59: 2.24 | C59: 2.102 | D59: 2.80 | E59: 0.44
A60: 57 | B60: 2.28 | C60: 2.216 | D60: 2.85 | E60: 0.42
A61: 58 | B61: 2.32 | C61: 2.335 | D61: 2.90 | E61: 0.41
A62: 59 | B62: 2.36 | C62: 2.458 | D62: 2.95 | E62: 0.39
A63: 60 | B63: 2.40 | C63: 2.585 | D63: 3.00 | E63: 0.38
A64: 61 | B64: 2.44 | C64: 2.717 | D64: 3.05 | E64: 0.37
A65: 62 | B65: 2.48 | C65: 2.852 | D65: 3.10 | E65: 0.36
A66: 63 | B66: 2.52 | C66: 2.993 | D66: 3.15 | E66: 0.35
A67: 64 | B67: 2.56 | C67: 3.137 | D67: 3.20 | E67: =(D68-D67)/(C68-C67) -> 0.33
A68: 65 | B68: =D68*RMax/HMax -> 2.60 | C68: =time*B68^2*D68/RMax^2/HMax -> 3.287 | D68: =D67+dy -> 3.25 | E68: 0.32
A69: 66 | B69: 2.64 | C69: 3.441 | D69: 3.30 | E69: 0.31
A70: 67 | B70: 2.68 | C70: 3.600 | D70: 3.35 | E70: 0.31
A71: 68 | B71: 2.72 | C71: 3.763 | D71: 3.40 | E71: 0.30
A72: 69 | B72: 2.76 | C72: 3.932 | D72: 3.45 | E72: 0.29
A73: 70 | B73: 2.80 | C73: 4.105 | D73: 3.50 | E73: 0.28
A74: 71 | B74: 2.84 | C74: 4.283 | D74: 3.55 | E74: 0.27
A75: 72 | B75: 2.88 | C75: 4.467 | D75: 3.60 | E75: 0.26
A76: 73 | B76: 2.92 | C76: 4.656 | D76: 3.65 | E76: 0.26
A77: 74 | B77: 2.96 | C77: 4.850 | D77: 3.70 | E77: 0.25
A78: 75 | B78: 3.00 | C78: 5.049 | D78: 3.75 | E78: 0.24
A79: 76 | B79: 3.04 | C79: 5.254 | D79: 3.80 | E79: 0.24
A80: 77 | B80: 3.08 | C80: 5.464 | D80: 3.85 | E80: 0.23
A81: 78 | B81: 3.12 | C81: 5.679 | D81: 3.90 | E81: 0.23
A82: 79 | B82: 3.16 | C82: 5.901 | D82: 3.95 | E82: 0.22
A83: 80 | B83: 3.20 | C83: 6.128 | D83: 4.00 | E83: 0.21
A84: 81 | B84: 3.24 | C84: 6.360 | D84: 4.05 | E84: 0.21
A85: 82 | B85: 3.28 | C85: 6.599 | D85: 4.10 | E85: 0.20
A86: 83 | B86: 3.32 | C86: 6.843 | D86: 4.15 | E86: 0.20
A87: 84 | B87: 3.36 | C87: 7.093 | D87: 4.20 | E87: 0.20
A88: 85 | B88: 3.40 | C88: 7.350 | D88: 4.25 | E88: 0.19
A89: 86 | B89: 3.44 | C89: 7.612 | D89: 4.30 | E89: 0.19
A90: 87 | B90: 3.48 | C90: 7.881 | D90: 4.35 | E90: 0.18
A91: 88 | B91: 3.52 | C91: 8.156 | D91: 4.40 | E91: 0.18
A92: 89 | B92: 3.56 | C92: 8.437 | D92: 4.45 | E92: 0.17
A93: 90 | B93: 3.60 | C93: 8.725 | D93: 4.50 | E93: 0.17
A94: 91 | B94: 3.64 | C94: 9.019 | D94: 4.55 | E94: 0.17
A95: 92 | B95: 3.68 | C95: 9.319 | D95: 4.60 | E95: 0.16
A96: 93 | B96: 3.72 | C96: 9.627 | D96: 4.65 | E96: 0.16
A97: 94 | B97: 3.76 | C97: 9.940 | D97: 4.70 | E97: 0.16
A98: 95 | B98: 3.80 | C98: 10.261 | D98: 4.75 | E98: 0.15
A99: 96 | B99: 3.84 | C99: 10.588 | D99: 4.80 | E99: =(D100-D99)/(C100-C99) -> 0.15
A100: 97 | B100: 3.88 | C100: =time*B100^2*D100/RMax^2/HMax -> 10.923 | D100: 4.85 | E100: 0.15
A101: 98 | B101: 3.92 | C101: 11.264 | D101: 4.90 | E101: 0.14
A102: 99 | B102: 3.96 | C102: 11.613 | D102: 4.95 | E102: 0.14
A103: 100 | B103: 4.00 | C103: 11.968 | D103: 5.00

Sheet Sheet1
